[Event "Titled Tuesday Blitz June 20 Early 2023"]
[White "Moskvin, Anatoly"]
[Black "ATM622"]
[WhiteFideId "24199990"]
[WhiteElo "2104"]
[BlackElo "2619"]
[Result "0-1"]
[Round "7"]
[TimeControl "180+2"]
[Date "2023.06.20"]
[WhiteClock "0:00:40"]
[BlackClock "0:02:09"]
[Board "81"]

1. e4 {[%clk 0:03:00]}  c6 {[%clk 0:02:59]} 2. c4 {[%clk 0:03:00]}  d5 {[%clk 0:02:59]} 3. exd5 {[%clk 0:03:01]}  cxd5 {[%clk 0:03:00]} 4. cxd5 {[%clk 0:03:02]}  Nf6 {[%clk 0:03:00]} 5. Nc3 {[%clk 0:03:03]}  Nxd5 {[%clk 0:03:00]} 6. Nf3 {[%clk 0:03:03]}  Nc6 {[%clk 0:02:59]} 7. Bb5 {[%clk 0:03:03]}  e6 {[%clk 0:02:59]} 8. O-O {[%clk 0:03:03]}  Be7 {[%clk 0:02:57]} 9. d4 {[%clk 0:03:03]}  O-O {[%clk 0:02:57]} 10. Re1 {[%clk 0:03:04]}  h6 {[%clk 0:02:44]} 11. Bd3 {[%clk 0:02:47]}  b6 {[%clk 0:02:36]} 12. Bc2 {[%clk 0:02:20]}  Ba6 {[%clk 0:02:29]} 13. Nxd5 {[%clk 0:01:39]}  exd5 {[%clk 0:02:26]} 14. a3 {[%clk 0:01:38]}  Rc8 {[%clk 0:02:25]} 15. Bf4 {[%clk 0:01:37]}  Bd6 {[%clk 0:02:22]} 16. Bxd6 {[%clk 0:01:11]}  Qxd6 {[%clk 0:02:23]} 17. Ne5 {[%clk 0:01:12]}  Nxd4 {[%clk 0:02:18]} 18. Qxd4 {[%clk 0:01:11]}  Rxc2 {[%clk 0:02:17]} 19. Qa4 {[%clk 0:00:43]}  Qc5 {[%clk 0:02:09]} 20. Qxa6 {[%clk 0:00:40]}  Qxf2+ {[%clk 0:02:09]} 0-1


[Site "https://www.chess.com"]

[Event "Titled Tuesday Blitz June 20 Early 2023"]
[White "Bauman_Guy"]
[Black "Santos Flores, Alberto"]
[BlackFideId "3601234"]
[WhiteElo "2619"]
[BlackElo "2235"]
[Result "1-0"]
[Round "7"]
[TimeControl "180+2"]
[Date "2023.06.20"]
[WhiteClock "0:00:40"]
[BlackClock "0:00:13"]
[Board "82"]

1. e4 {[%clk 0:03:00]}  c5 {[%clk 0:02:59]} 2. Nf3 {[%clk 0:03:01]}  Nc6 {[%clk 0:02:59]} 3. d4 {[%clk 0:03:01]}  cxd4 {[%clk 0:02:59]} 4. Nxd4 {[%clk 0:03:02]}  g6 {[%clk 0:02:59]} 5. c4 {[%clk 0:03:02]}  Nf6 {[%clk 0:02:58]} 6. Nc3 {[%clk 0:03:02]}  d6 {[%clk 0:02:59]} 7. Nc2 {[%clk 0:02:57]}  Bg7 {[%clk 0:02:58]} 8. Be2 {[%clk 0:02:56]}  O-O {[%clk 0:02:58]} 9. O-O {[%clk 0:02:55]}  Be6 {[%clk 0:02:57]} 10. Be3 {[%clk 0:02:53]}  a6 {[%clk 0:02:58]} 11. Qd2 {[%clk 0:02:53]}  Qa5 {[%clk 0:02:56]} 12. f3 {[%clk 0:02:50]}  Rfc8 {[%clk 0:02:56]} 13. Rfd1 {[%clk 0:02:38]}  Rab8 {[%clk 0:02:54]} 14. Nd5 {[%clk 0:02:35]}  Qxd2 {[%clk 0:02:53]} 15. Rxd2 {[%clk 0:02:34]}  b5 {[%clk 0:02:40]} 16. Nb6 {[%clk 0:02:21]}  Rc7 {[%clk 0:02:06]} 17. cxb5 {[%clk 0:02:21]}  axb5 {[%clk 0:02:07]} 18. Bxb5 {[%clk 0:02:21]}  Ne5 {[%clk 0:02:06]} 19. a4 {[%clk 0:02:12]}  Nc4 {[%clk 0:01:57]} 20. Nxc4 {[%clk 0:02:02]}  Bxc4 {[%clk 0:01:58]} 21. Na3 {[%clk 0:02:03]}  Be6 {[%clk 0:01:48]} 22. Rc2 {[%clk 0:01:49]}  Rxc2 {[%clk 0:01:42]} 23. Nxc2 {[%clk 0:01:49]}  Nd7 {[%clk 0:01:43]} 24. Nd4 {[%clk 0:01:46]}  Nc5 {[%clk 0:01:35]} 25. Nxe6 {[%clk 0:01:45]}  fxe6 {[%clk 0:01:34]} 26. Bxc5 {[%clk 0:01:34]}  dxc5 {[%clk 0:01:34]} 27. Ra2 {[%clk 0:01:10]}  Bd4+ {[%clk 0:01:25]} 28. Kf1 {[%clk 0:01:09]}  Kf7 {[%clk 0:01:24]} 29. b3 {[%clk 0:01:08]}  e5 {[%clk 0:01:23]} 30. Bc4+ {[%clk 0:01:08]}  Ke8 {[%clk 0:01:22]} 31. a5 {[%clk 0:01:08]}  Ra8 {[%clk 0:01:17]} 32. a6 {[%clk 0:01:09]}  Ra7 {[%clk 0:01:17]} 33. g3 {[%clk 0:00:59]}  Kd7 {[%clk 0:01:15]} 34. Kg2 {[%clk 0:00:59]}  Kc6 {[%clk 0:01:13]} 35. Kh3 {[%clk 0:00:52]}  Kb6 {[%clk 0:01:13]} 36. Kg4 {[%clk 0:00:52]}  h6 {[%clk 0:01:11]} 37. h4 {[%clk 0:00:51]}  Be3 {[%clk 0:01:09]} 38. h5 {[%clk 0:00:47]}  gxh5+ {[%clk 0:01:06]} 39. Kxh5 {[%clk 0:00:47]}  e6 {[%clk 0:01:06]} 40. Re2 {[%clk 0:00:45]}  Bc1 {[%clk 0:01:01]} 41. Re1 {[%clk 0:00:45]}  Bd2 {[%clk 0:01:01]} 42. Rd1 {[%clk 0:00:46]}  Be3 {[%clk 0:01:00]} 43. Rd6+ {[%clk 0:00:45]}  Ka5 {[%clk 0:01:00]} 44. Rxe6 {[%clk 0:00:45]}  Rg7 {[%clk 0:00:25]} 45. Rxe5 {[%clk 0:00:40]}  Rxg3 {[%clk 0:00:13]} 46. a7 {[%clk 0:00:40]} 1-0


[Site "https://www.chess.com"]

[Event "Titled Tuesday Blitz June 20 Early 2023"]
[White "Begunov, Konstantin"]
[Black "Gontcharov, Vladislav"]
[WhiteFideId "4118510"]
[BlackFideId "4123492"]
[WhiteElo "1993"]
[BlackElo "2420"]
[Result "1-0"]
[Round "7"]
[TimeControl "180+2"]
[Date "2023.06.20"]
[WhiteClock "0:00:05"]
[BlackClock "0:00:00"]
[Board "84"]

1. d4 {[%clk 0:02:55]}  Nf6 {[%clk 0:02:58]} 2. c4 {[%clk 0:02:55]}  c5 {[%clk 0:02:58]} 3. Nf3 {[%clk 0:02:54]}  cxd4 {[%clk 0:02:57]} 4. Nxd4 {[%clk 0:02:55]}  e5 {[%clk 0:02:58]} 5. Nb5 {[%clk 0:02:55]}  d5 {[%clk 0:02:58]} 6. cxd5 {[%clk 0:02:56]}  Bc5 {[%clk 0:02:58]} 7. d6 {[%clk 0:02:54]}  O-O {[%clk 0:02:57]} 8. Nc7 {[%clk 0:02:53]}  Ne4 {[%clk 0:02:42]} 9. e3 {[%clk 0:02:54]}  Bb4+ {[%clk 0:02:31]} 10. Nd2 {[%clk 0:02:54]}  Qxd6 {[%clk 0:02:30]} 11. Nb5 {[%clk 0:02:51]}  Qf6 {[%clk 0:02:14]} 12. Qf3 {[%clk 0:02:43]}  Bf5 {[%clk 0:02:12]} 13. a3 {[%clk 0:02:27]}  Bxd2+ {[%clk 0:02:03]} 14. Bxd2 {[%clk 0:02:27]}  Nxd2 {[%clk 0:02:02]} 15. Kxd2 {[%clk 0:02:28]}  Rd8+ {[%clk 0:02:00]} 16. Ke1 {[%clk 0:02:05]}  e4 {[%clk 0:01:45]} 17. Qe2 {[%clk 0:01:35]}  Nc6 {[%clk 0:01:42]} 18. Qc2 {[%clk 0:01:23]}  Rac8 {[%clk 0:01:29]} 19. Nc3 {[%clk 0:01:23]}  Qg6 {[%clk 0:00:57]} 20. h3 {[%clk 0:01:17]}  h5 {[%clk 0:00:57]} 21. Rd1 {[%clk 0:00:46]}  Ne5 {[%clk 0:00:53]} 22. Rxd8+ {[%clk 0:00:40]}  Rxd8 {[%clk 0:00:52]} 23. Qa4 {[%clk 0:00:28]}  Nd3+ {[%clk 0:00:45]} 24. Bxd3 {[%clk 0:00:27]}  Qxg2 {[%clk 0:00:44]} 25. Bxe4 {[%clk 0:00:19]}  Qg6 {[%clk 0:00:26]} 26. Qc2 {[%clk 0:00:18]}  Bxe4 {[%clk 0:00:22]} 27. Qxe4 {[%clk 0:00:19]}  Qa6 {[%clk 0:00:22]} 28. Rg1 {[%clk 0:00:16]}  g6 {[%clk 0:00:14]} 29. Rg5 {[%clk 0:00:13]}  Qb6 {[%clk 0:00:13]} 30. Qc2 {[%clk 0:00:12]}  Qc6 {[%clk 0:00:12]} 31. Re5 {[%clk 0:00:08]}  Kg7 {[%clk 0:00:11]} 32. Re4 {[%clk 0:00:07]}  b5 {[%clk 0:00:08]} 33. h4 {[%clk 0:00:07]}  a6 {[%clk 0:00:08]} 34. Ke2 {[%clk 0:00:07]}  a5 {[%clk 0:00:04]} 35. Rd4 {[%clk 0:00:06]}  b4 {[%clk 0:00:04]} 36. Rxd8 {[%clk 0:00:06]}  Qa6+ {[%clk 0:00:00]} 37. Qd3 {[%clk 0:00:05]} 1-0


[Site "https://www.chess.com"]

[Event "Titled Tuesday Blitz June 20 Early 2023"]
[White "Goffredo_Fofi"]
[Black "Howell, David W L"]
[BlackFideId "410608"]
[WhiteElo "2508"]
[BlackElo "2567"]
[Result "0-1"]
[Round "7"]
[TimeControl "180+2"]
[Date "2023.06.20"]
[WhiteClock "0:00:03"]
[BlackClock "0:00:11"]
[Board "88"]

1. d4 {[%clk 0:03:00]}  e6 {[%clk 0:02:54]} 2. c4 {[%clk 0:03:00]}  Bb4+ {[%clk 0:02:53]} 3. Bd2 {[%clk 0:03:00]}  a5 {[%clk 0:02:53]} 4. g3 {[%clk 0:03:00]}  d5 {[%clk 0:02:52]} 5. Bg2 {[%clk 0:02:58]}  Nf6 {[%clk 0:02:51]} 6. Qc2 {[%clk 0:02:57]}  c5 {[%clk 0:02:49]} 7. dxc5 {[%clk 0:02:54]}  d4 {[%clk 0:02:49]} 8. Nf3 {[%clk 0:02:30]}  O-O {[%clk 0:02:48]} 9. O-O {[%clk 0:02:29]}  Bxc5 {[%clk 0:02:41]} 10. Rd1 {[%clk 0:02:24]}  Nc6 {[%clk 0:02:29]} 11. Bf4 {[%clk 0:02:23]}  Nd7 {[%clk 0:02:09]} 12. Ng5 {[%clk 0:02:05]}  g6 {[%clk 0:02:07]} 13. Ne4 {[%clk 0:02:03]}  Be7 {[%clk 0:02:00]} 14. Bh6 {[%clk 0:01:59]}  Re8 {[%clk 0:01:59]} 15. h4 {[%clk 0:01:51]}  e5 {[%clk 0:01:56]} 16. Na3 {[%clk 0:01:50]}  Nc5 {[%clk 0:01:38]} 17. Nb5 {[%clk 0:01:30]}  Bf5 {[%clk 0:01:35]} 18. a3 {[%clk 0:01:03]}  a4 {[%clk 0:01:32]} 19. Rac1 {[%clk 0:00:54]}  Qd7 {[%clk 0:01:29]} 20. Nbc3 {[%clk 0:00:51]}  Rac8 {[%clk 0:01:03]} 21. Nd5 {[%clk 0:00:48]}  Qe6 {[%clk 0:01:02]} 22. Re1 {[%clk 0:00:36]}  Bxe4 {[%clk 0:00:48]} 23. Bxe4 {[%clk 0:00:37]}  Nxe4 {[%clk 0:00:49]} 24. Qxe4 {[%clk 0:00:37]}  f5 {[%clk 0:00:50]} 25. Qc2 {[%clk 0:00:34]}  e4 {[%clk 0:00:50]} 26. Qxa4 {[%clk 0:00:33]}  Bd6 {[%clk 0:00:43]} 27. Rcd1 {[%clk 0:00:20]}  e3 {[%clk 0:00:38]} 28. f4 {[%clk 0:00:15]}  Qf7 {[%clk 0:00:32]} 29. b4 {[%clk 0:00:12]}  Re4 {[%clk 0:00:32]} 30. b5 {[%clk 0:00:10]}  Ne7 {[%clk 0:00:31]} 31. Nxe7+ {[%clk 0:00:08]}  Bxe7 {[%clk 0:00:31]} 32. Rc1 {[%clk 0:00:07]}  Bc5 {[%clk 0:00:30]} 33. Red1 {[%clk 0:00:06]}  Qe8 {[%clk 0:00:24]} 34. Qb3 {[%clk 0:00:06]}  b6 {[%clk 0:00:24]} 35. a4 {[%clk 0:00:06]}  Ra8 {[%clk 0:00:25]} 36. Ra1 {[%clk 0:00:06]}  Ra7 {[%clk 0:00:25]} 37. Qc2 {[%clk 0:00:05]}  Qa8 {[%clk 0:00:25]} 38. Qb3 {[%clk 0:00:05]}  Kf7 {[%clk 0:00:25]} 39. Ra2 {[%clk 0:00:06]}  Ke6 {[%clk 0:00:23]} 40. Rda1 {[%clk 0:00:06]}  Ra5 {[%clk 0:00:22]} 41. Rd1 {[%clk 0:00:06]}  Kd7 {[%clk 0:00:20]} 42. Rda1 {[%clk 0:00:06]}  Kc7 {[%clk 0:00:20]} 43. Rd1 {[%clk 0:00:06]}  Kb7 {[%clk 0:00:21]} 44. Rda1 {[%clk 0:00:07]}  Ka7 {[%clk 0:00:22]} 45. Rd1 {[%clk 0:00:07]}  Re7 {[%clk 0:00:22]} 46. Rda1 {[%clk 0:00:07]}  Qe4 {[%clk 0:00:22]} 47. Rd1 {[%clk 0:00:06]}  Re8 {[%clk 0:00:22]} 48. Qd3 {[%clk 0:00:06]}  Qe6 {[%clk 0:00:21]} 49. Rda1 {[%clk 0:00:06]}  Kb7 {[%clk 0:00:21]} 50. Rc1 {[%clk 0:00:06]}  Rea8 {[%clk 0:00:21]} 51. Rca1 {[%clk 0:00:06]}  Kc8 {[%clk 0:00:22]} 52. Qb3 {[%clk 0:00:05]}  Kd7 {[%clk 0:00:20]} 53. Rd1 {[%clk 0:00:05]}  Qe4 {[%clk 0:00:19]} 54. Rda1 {[%clk 0:00:05]}  Re8 {[%clk 0:00:19]} 55. Rd1 {[%clk 0:00:05]}  Kc7 {[%clk 0:00:19]} 56. Rda1 {[%clk 0:00:05]}  Kb7 {[%clk 0:00:19]} 57. Rd1 {[%clk 0:00:06]}  Rd8 {[%clk 0:00:18]} 58. Rb2 {[%clk 0:00:04]}  Rd7 {[%clk 0:00:16]} 59. Ra2 {[%clk 0:00:05]}  Kb8 {[%clk 0:00:17]} 60. Rb2 {[%clk 0:00:05]}  Qe7 {[%clk 0:00:13]} 61. Ra2 {[%clk 0:00:05]}  Bb4 {[%clk 0:00:13]} 62. Qd3 {[%clk 0:00:04]}  Bc3 {[%clk 0:00:13]} 63. Rc2 {[%clk 0:00:03]}  Qb4 {[%clk 0:00:10]} 64. Rxc3 {[%clk 0:00:02]}  Qxc3 {[%clk 0:00:10]} 65. Qxc3 {[%clk 0:00:02]}  dxc3 {[%clk 0:00:11]} 66. Rxd7 {[%clk 0:00:02]}  c2 {[%clk 0:00:12]} 67. Rd8+ {[%clk 0:00:01]}  Kc7 {[%clk 0:00:11]} 68. Rh8 {[%clk 0:00:01]}  c1=Q+ {[%clk 0:00:11]} 69. Kg2 {[%clk 0:00:02]}  Qe1 {[%clk 0:00:11]} 70. Kf3 {[%clk 0:00:03]}  Qf2# {[%clk 0:00:11]} 0-1


[Site "https://www.chess.com"]

[Event "Titled Tuesday Blitz June 20 Early 2023"]
[White "Lehtosaari, Mauri"]
[Black "Simonian, Hrair"]
[WhiteFideId "501999"]
[BlackFideId "13302337"]
[WhiteElo "2508"]
[BlackElo "2447"]
[Result "0-1"]
[Round "7"]
[TimeControl "180+2"]
[Date "2023.06.20"]
[WhiteClock "0:00:05"]
[BlackClock "0:01:17"]
[Board "89"]

1. d4 {[%clk 0:03:00]}  Nf6 {[%clk 0:02:59]} 2. Nf3 {[%clk 0:03:00]}  b6 {[%clk 0:03:00]} 3. Bg5 {[%clk 0:03:00]}  Bb7 {[%clk 0:03:01]} 4. Nbd2 {[%clk 0:03:01]}  g6 {[%clk 0:03:00]} 5. Bxf6 {[%clk 0:03:00]}  exf6 {[%clk 0:03:01]} 6. e3 {[%clk 0:03:01]}  h5 {[%clk 0:03:01]} 7. Bc4 {[%clk 0:03:00]}  Bh6 {[%clk 0:03:01]} 8. c3 {[%clk 0:03:00]}  f5 {[%clk 0:02:59]} 9. g3 {[%clk 0:02:57]}  O-O {[%clk 0:02:59]} 10. a4 {[%clk 0:02:54]}  a5 {[%clk 0:02:58]} 11. h4 {[%clk 0:02:51]}  d6 {[%clk 0:02:58]} 12. Qc2 {[%clk 0:02:49]}  Nd7 {[%clk 0:02:58]} 13. Bf1 {[%clk 0:02:26]}  Nf6 {[%clk 0:02:58]} 14. Bg2 {[%clk 0:02:23]}  Kg7 {[%clk 0:02:56]} 15. O-O {[%clk 0:02:21]}  Ng4 {[%clk 0:02:52]} 16. Rfe1 {[%clk 0:02:20]}  Re8 {[%clk 0:02:49]} 17. b3 {[%clk 0:02:15]}  Qf6 {[%clk 0:02:43]} 18. c4 {[%clk 0:02:12]}  Re7 {[%clk 0:02:37]} 19. d5 {[%clk 0:02:11]}  Rae8 {[%clk 0:02:36]} 20. Rac1 {[%clk 0:02:01]}  Nxe3 {[%clk 0:02:30]} 21. fxe3 {[%clk 0:01:59]}  Bxe3+ {[%clk 0:02:31]} 22. Kh1 {[%clk 0:01:57]}  Bc8 {[%clk 0:02:32]} 23. Qc3 {[%clk 0:01:45]}  f4 {[%clk 0:02:30]} 24. Qxf6+ {[%clk 0:01:44]}  Kxf6 {[%clk 0:02:31]} 25. gxf4 {[%clk 0:01:41]}  Bxf4 {[%clk 0:02:32]} 26. Rxe7 {[%clk 0:01:41]}  Rxe7 {[%clk 0:02:33]} 27. Rf1 {[%clk 0:01:36]}  Kg7 {[%clk 0:02:33]} 28. Kg1 {[%clk 0:01:26]}  Re2 {[%clk 0:02:32]} 29. Nb1 {[%clk 0:01:20]}  Rb2 {[%clk 0:02:21]} 30. Ng5 {[%clk 0:01:13]}  Be3+ {[%clk 0:02:05]} 31. Kh1 {[%clk 0:01:10]}  Bxg5 {[%clk 0:02:06]} 32. hxg5 {[%clk 0:01:09]}  Rxb3 {[%clk 0:02:04]} 33. Nd2 {[%clk 0:01:08]}  Rb4 {[%clk 0:02:00]} 34. Re1 {[%clk 0:01:04]}  h4 {[%clk 0:01:47]} 35. Ne4 {[%clk 0:01:00]}  h3 {[%clk 0:01:44]} 36. Bf3 {[%clk 0:00:55]}  Bd7 {[%clk 0:01:39]} 37. Nf6 {[%clk 0:00:53]}  Bxa4 {[%clk 0:01:39]} 38. Be2 {[%clk 0:00:45]}  Rb3 {[%clk 0:01:34]} 39. Kh2 {[%clk 0:00:30]}  Re3 {[%clk 0:01:31]} 40. Ng4 {[%clk 0:00:20]}  Re8 {[%clk 0:01:27]} 41. Kg3 {[%clk 0:00:20]}  Bc2 {[%clk 0:01:27]} 42. Kf2 {[%clk 0:00:19]}  a4 {[%clk 0:01:25]} 43. Ra1 {[%clk 0:00:19]}  Ra8 {[%clk 0:01:24]} 44. Nf6 {[%clk 0:00:17]}  a3 {[%clk 0:01:23]} 45. Ke3 {[%clk 0:00:12]}  a2 {[%clk 0:01:22]} 46. Bd3 {[%clk 0:00:13]}  Ra3 {[%clk 0:01:22]} 47. Rh1 {[%clk 0:00:05]}  Rxd3+ {[%clk 0:01:17]} 0-1


[Site "https://www.chess.com"]

[Event "Titled Tuesday Blitz June 20 Early 2023"]
[White "Tokhirjonova, Gulrukhbegim"]
[Black "Hambleton, Aman"]
[WhiteFideId "14203626"]
[BlackFideId "2606577"]
[WhiteElo "2265"]
[BlackElo "2511"]
[Result "1-0"]
[Round "7"]
[TimeControl "180+2"]
[Date "2023.06.20"]
[WhiteClock "0:00:18"]
[BlackClock "0:00:00"]
[Board "90"]

1. e4 {[%clk 0:03:00]}  b6 {[%clk 0:02:54]} 2. d4 {[%clk 0:02:58]}  Bb7 {[%clk 0:02:54]} 3. Nc3 {[%clk 0:02:58]}  e6 {[%clk 0:02:54]} 4. Nf3 {[%clk 0:02:58]}  Bb4 {[%clk 0:02:53]} 5. Bd3 {[%clk 0:02:58]}  Nf6 {[%clk 0:02:54]} 6. Qe2 {[%clk 0:02:58]}  d5 {[%clk 0:02:53]} 7. exd5 {[%clk 0:02:58]}  Qxd5 {[%clk 0:02:54]} 8. Bd2 {[%clk 0:02:57]}  Bxc3 {[%clk 0:02:54]} 9. bxc3 {[%clk 0:02:50]}  Qh5 {[%clk 0:02:55]} 10. Ne5 {[%clk 0:02:40]}  Qxe2+ {[%clk 0:02:55]} 11. Kxe2 {[%clk 0:02:39]}  Nbd7 {[%clk 0:02:50]} 12. f4 {[%clk 0:02:30]}  a6 {[%clk 0:02:18]} 13. a4 {[%clk 0:02:28]}  Ne4 {[%clk 0:00:56]} 14. a5 {[%clk 0:01:54]}  b5 {[%clk 0:00:27]} 15. c4 {[%clk 0:01:42]}  bxc4 {[%clk 0:00:19]} 16. Bxc4 {[%clk 0:01:42]}  f6 {[%clk 0:00:13]} 17. Nf3 {[%clk 0:01:33]}  Bd5 {[%clk 0:00:07]} 18. Bd3 {[%clk 0:01:31]}  Nd6 {[%clk 0:00:08]} 19. Ra4 {[%clk 0:01:26]}  f5 {[%clk 0:00:06]} 20. c4 {[%clk 0:01:26]}  Be4 {[%clk 0:00:05]} 21. Ne5 {[%clk 0:01:24]}  Nxe5 {[%clk 0:00:03]} 22. fxe5 {[%clk 0:01:18]}  Bxd3+ {[%clk 0:00:04]} 23. Kxd3 {[%clk 0:01:18]}  Ne4 {[%clk 0:00:04]} 24. Be3 {[%clk 0:01:18]}  Kd7 {[%clk 0:00:02]} 25. Rb1 {[%clk 0:01:17]}  Rhb8 {[%clk 0:00:02]} 26. Rab4 {[%clk 0:01:18]}  Rxb4 {[%clk 0:00:02]} 27. Rxb4 {[%clk 0:01:19]}  Kc8 {[%clk 0:00:02]} 28. d5 {[%clk 0:01:17]}  Kd7 {[%clk 0:00:01]} 29. Rb7 {[%clk 0:01:15]}  Kc8 {[%clk 0:00:01]} 30. Rb1 {[%clk 0:01:07]}  Kd7 {[%clk 0:00:01]} 31. g3 {[%clk 0:01:03]}  g6 {[%clk 0:00:02]} 32. Bd4 {[%clk 0:00:50]}  Rd8 {[%clk 0:00:01]} 33. Rb7 {[%clk 0:00:42]}  exd5 {[%clk 0:00:01]} 34. Ra7 {[%clk 0:00:43]}  dxc4+ {[%clk 0:00:01]} 35. Kxc4 {[%clk 0:00:43]}  Ke6 {[%clk 0:00:01]} 36. Rxa6+ {[%clk 0:00:40]}  Kd7 {[%clk 0:00:01]} 37. Ra7 {[%clk 0:00:38]}  Kc6 {[%clk 0:00:01]} 38. Ra6+ {[%clk 0:00:34]}  Kb7 {[%clk 0:00:02]} 39. Re6 {[%clk 0:00:29]}  Nd2+ {[%clk 0:00:02]} 40. Kc3 {[%clk 0:00:26]}  Ne4+ {[%clk 0:00:02]} 41. Kc4 {[%clk 0:00:25]}  Nd2+ {[%clk 0:00:02]} 42. Kc3 {[%clk 0:00:24]}  Nf3 {[%clk 0:00:03]} 43. a6+ {[%clk 0:00:22]}  Kb8 {[%clk 0:00:01]} 44. Bc5 {[%clk 0:00:20]}  Rd5 {[%clk 0:00:00]} 45. Re8+ {[%clk 0:00:18]} 1-0


[Site "https://www.chess.com"]

[Event "Titled Tuesday Blitz June 20 Early 2023"]
[White "Martinez Ramirez, Lennis"]
[Black "Khamdamova, Afruza"]
[WhiteFideId "3509079"]
[BlackFideId "14210444"]
[WhiteElo "2410"]
[BlackElo "2312"]
[Result "1-0"]
[Round "7"]
[TimeControl "180+2"]
[Date "2023.06.20"]
[WhiteClock "0:00:48"]
[BlackClock "0:00:00"]
[Board "93"]

1. c4 {[%clk 0:03:00]}  e6 {[%clk 0:02:59]} 2. Nc3 {[%clk 0:02:59]}  d5 {[%clk 0:02:58]} 3. cxd5 {[%clk 0:03:00]}  exd5 {[%clk 0:02:58]} 4. d4 {[%clk 0:03:00]}  Nf6 {[%clk 0:02:58]} 5. Bg5 {[%clk 0:03:00]}  Be7 {[%clk 0:02:58]} 6. e3 {[%clk 0:03:00]}  O-O {[%clk 0:02:57]} 7. Bd3 {[%clk 0:03:01]}  c6 {[%clk 0:02:57]} 8. Qc2 {[%clk 0:03:00]}  Nbd7 {[%clk 0:02:56]} 9. Nge2 {[%clk 0:02:58]}  Re8 {[%clk 0:02:54]} 10. O-O-O {[%clk 0:02:57]}  b5 {[%clk 0:02:44]} 11. h4 {[%clk 0:02:51]}  h6 {[%clk 0:02:28]} 12. Bf4 {[%clk 0:02:49]}  a5 {[%clk 0:02:27]} 13. f3 {[%clk 0:02:40]}  Ba6 {[%clk 0:02:07]} 14. g4 {[%clk 0:02:40]}  b4 {[%clk 0:02:07]} 15. Na4 {[%clk 0:02:40]}  Bxd3 {[%clk 0:02:07]} 16. Rxd3 {[%clk 0:02:41]}  c5 {[%clk 0:01:59]} 17. dxc5 {[%clk 0:02:37]}  Nxc5 {[%clk 0:01:58]} 18. Nxc5 {[%clk 0:02:36]}  Bxc5 {[%clk 0:01:58]} 19. Kb1 {[%clk 0:02:32]}  Rc8 {[%clk 0:01:52]} 20. Qd2 {[%clk 0:02:32]}  Qb6 {[%clk 0:01:35]} 21. Ng3 {[%clk 0:02:27]}  a4 {[%clk 0:01:07]} 22. g5 {[%clk 0:02:27]}  Nh7 {[%clk 0:01:06]} 23. gxh6 {[%clk 0:02:26]}  g6 {[%clk 0:01:06]} 24. Ne2 {[%clk 0:02:10]}  b3 {[%clk 0:00:47]} 25. Nc3 {[%clk 0:01:50]}  bxa2+ {[%clk 0:00:43]} 26. Ka1 {[%clk 0:01:50]}  a3 {[%clk 0:00:40]} 27. Nxd5 {[%clk 0:01:37]}  axb2+ {[%clk 0:00:40]} 28. Qxb2 {[%clk 0:01:37]}  Qxb2+ {[%clk 0:00:38]} 29. Kxb2 {[%clk 0:01:38]}  Ra8 {[%clk 0:00:36]} 30. Ra1 {[%clk 0:01:35]}  Bf8 {[%clk 0:00:10]} 31. Rxa2 {[%clk 0:01:34]}  Rxa2+ {[%clk 0:00:10]} 32. Kxa2 {[%clk 0:01:34]}  Ra8+ {[%clk 0:00:10]} 33. Kb2 {[%clk 0:01:34]}  Rc8 {[%clk 0:00:08]} 34. e4 {[%clk 0:01:31]}  Re8 {[%clk 0:00:07]} 35. Rc3 {[%clk 0:01:29]}  Ra8 {[%clk 0:00:06]} 36. Rc7 {[%clk 0:01:28]}  Ba3+ {[%clk 0:00:06]} 37. Kb3 {[%clk 0:01:28]}  Bf8 {[%clk 0:00:06]} 38. Kc4 {[%clk 0:01:19]}  Ra4+ {[%clk 0:00:05]} 39. Kd3 {[%clk 0:01:20]}  Ra3+ {[%clk 0:00:05]} 40. Ke2 {[%clk 0:01:20]}  Ra2+ {[%clk 0:00:05]} 41. Ke3 {[%clk 0:01:20]}  Ra8 {[%clk 0:00:05]} 42. Nb6 {[%clk 0:01:17]}  Re8 {[%clk 0:00:03]} 43. Nd7 {[%clk 0:01:16]}  Be7 {[%clk 0:00:03]} 44. Bg5 {[%clk 0:01:07]}  Nxg5 {[%clk 0:00:03]} 45. hxg5 {[%clk 0:01:08]}  Bxg5+ {[%clk 0:00:03]} 46. f4 {[%clk 0:01:09]}  Be7 {[%clk 0:00:03]} 47. Ne5 {[%clk 0:01:06]}  Bf6 {[%clk 0:00:03]} 48. Nxf7 {[%clk 0:01:05]}  Re7 {[%clk 0:00:02]} 49. Rxe7 {[%clk 0:01:04]}  Bxe7 {[%clk 0:00:03]} 50. Ng5 {[%clk 0:01:04]}  Bf6 {[%clk 0:00:02]} 51. e5 {[%clk 0:01:04]}  Be7 {[%clk 0:00:03]} 52. Ke4 {[%clk 0:01:02]}  Bb4 {[%clk 0:00:02]} 53. Kd5 {[%clk 0:00:57]}  Bd2 {[%clk 0:00:03]} 54. e6 {[%clk 0:00:53]}  Bb4 {[%clk 0:00:02]} 55. Ke5 {[%clk 0:00:51]}  Be7 {[%clk 0:00:02]} 56. Kd5 {[%clk 0:00:51]}  Bf8 {[%clk 0:00:02]} 57. Kc6 {[%clk 0:00:48]}  Be7 {[%clk 0:00:00]} 58. Kd7 {[%clk 0:00:48]} 1-0


[Site "https://www.chess.com"]

[Event "Titled Tuesday Blitz June 20 Early 2023"]
[White "Papayan, Oleg"]
[Black "Vaibhav Jayant Raut"]
[WhiteFideId "4193911"]
[BlackFideId "5089034"]
[WhiteElo "2167"]
[BlackElo "2156"]
[Result "0-1"]
[Round "7"]
[TimeControl "180+2"]
[Date "2023.06.20"]
[WhiteClock "0:00:00"]
[BlackClock "0:00:54"]
[Board "97"]

1. e4 {[%clk 0:02:58]}  c5 {[%clk 0:02:59]} 2. d4 {[%clk 0:02:58]}  cxd4 {[%clk 0:02:59]} 3. Qxd4 {[%clk 0:02:59]}  Nc6 {[%clk 0:02:59]} 4. Qd3 {[%clk 0:02:59]}  Nf6 {[%clk 0:02:58]} 5. Nc3 {[%clk 0:03:00]}  d6 {[%clk 0:02:57]} 6. Nf3 {[%clk 0:02:59]}  g6 {[%clk 0:02:57]} 7. Be2 {[%clk 0:02:59]}  Bg7 {[%clk 0:02:57]} 8. O-O {[%clk 0:03:00]}  O-O {[%clk 0:02:57]} 9. Nd5 {[%clk 0:03:00]}  Nxd5 {[%clk 0:02:55]} 10. exd5 {[%clk 0:03:01]}  Bf5 {[%clk 0:02:53]} 11. Qd1 {[%clk 0:03:01]}  Ne5 {[%clk 0:02:45]} 12. c3 {[%clk 0:02:53]}  Nxf3+ {[%clk 0:02:43]} 13. Bxf3 {[%clk 0:02:53]}  a5 {[%clk 0:02:43]} 14. a4 {[%clk 0:02:53]}  Qb6 {[%clk 0:02:40]} 15. Re1 {[%clk 0:02:51]}  Rfe8 {[%clk 0:02:39]} 16. Qe2 {[%clk 0:02:35]}  Rac8 {[%clk 0:02:31]} 17. Be3 {[%clk 0:02:34]}  Qb3 {[%clk 0:02:31]} 18. Qb5 {[%clk 0:02:28]}  Bc2 {[%clk 0:02:20]} 19. Ra3 {[%clk 0:01:59]}  Qxb5 {[%clk 0:02:10]} 20. axb5 {[%clk 0:02:00]}  a4 {[%clk 0:02:11]} 21. Bg4 {[%clk 0:01:31]}  Rc4 {[%clk 0:02:05]} 22. Bd7 {[%clk 0:01:30]}  Rd8 {[%clk 0:02:05]} 23. Bh3 {[%clk 0:01:24]}  Be4 {[%clk 0:01:57]} 24. Bb6 {[%clk 0:01:20]}  Ra8 {[%clk 0:01:53]} 25. f3 {[%clk 0:01:10]}  Bxd5 {[%clk 0:01:47]} 26. Rxe7 {[%clk 0:01:11]}  Bf6 {[%clk 0:01:47]} 27. Rd7 {[%clk 0:01:05]}  Be5 {[%clk 0:01:42]} 28. Bc7 {[%clk 0:01:05]}  Rc5 {[%clk 0:01:39]} 29. b6 {[%clk 0:00:37]}  Bc6 {[%clk 0:01:18]} 30. Rd8+ {[%clk 0:00:37]}  Rxd8 {[%clk 0:01:18]} 31. Bxd8 {[%clk 0:00:38]}  Rb5 {[%clk 0:01:16]} 32. Rxa4 {[%clk 0:00:27]}  Rxb2 {[%clk 0:01:15]} 33. Ra8 {[%clk 0:00:26]}  Kg7 {[%clk 0:01:15]} 34. Bc7 {[%clk 0:00:14]}  Bxc3 {[%clk 0:01:10]} 35. Bxd6 {[%clk 0:00:10]}  Bd4+ {[%clk 0:01:03]} 36. Kf1 {[%clk 0:00:10]}  Bb5+ {[%clk 0:01:04]} 37. Ke1 {[%clk 0:00:10]}  Bc3+ {[%clk 0:00:53]} 38. Kd1 {[%clk 0:00:10]}  Rd2+ {[%clk 0:00:53]} 39. Kc1 {[%clk 0:00:00]}  Rxd6 {[%clk 0:00:54]} 0-1


[Site "https://www.chess.com"]